bitfinex/quotes_BTCUSD_20250124
["timestamp","ask_amount","ask_price","bid_price","bid_amount"]
[1737679699177,1.96012978,103760.0,103750.0,0.00658437]
[1737679699390,1.96012978,103760.0,103750.0,0.0001423]
[1737679699535,1.96012978,103760.0,103750.0,0.00658438]
[1737679699739,1.96012978,103760.0,103750.0,0.0001423]
[1737679699953,1.96012978,103760.0,103750.0,0.00658438]
[1737679700198,1.96012978,103760.0,103750.0,0.0001423]
[1737679700404,1.95058844,103760.0,103750.0,0.00658438]
[1737679700607,0.45058844,103760.0,103750.0,0.0001423]
[1737679700837,0.35324115,103760.0,103750.0,0.00459361]
[1737679701076,0.002,103760.0,103750.0,0.10097861]
[1737679701279,0.002,103760.0,103750.0,0.20676948]
[1737679701841,0.001,103760.0,103750.0,0.30411677]
[1737679702045,0.097376,103760.0,103750.0,0.30411677]
[1737679702798,0.096376,103760.0,103750.0,0.30411677]
[1737679702994,0.096376,103760.0,103750.0,0.30511677]
[1737679703633,0.096376,103760.0,103750.0,0.30611677]
[1737679703948,0.481866,103770.0,103750.0,0.49888277]
[1737679704682,0.481866,103770.0,103750.0,0.69165177]
[1737679704887,0.674611,103770.0,103750.0,0.69165177]
[1737679705281,0.481864,103770.0,103750.0,0.69165177]
[1737679705506,0.289119,103770.0,103760.0,0.15]
[1737679705660,0.289119,103770.0,103760.0,0.17079145]
[1737679707531,0.290119,103770.0,103760.0,0.17079145]
[1737679708875,1.790119,103770.0,103760.0,0.17079145]
[1737679713817,1.89745277,103770.0,103760.0,0.15441275]
[1737679714025,1.89745277,103770.0,103760.0,0.00441275]
[1737679714441,0.39745277,103770.0,103760.0,0.00441275]
[1737679715915,0.72663383,103770.0,103760.0,0.00441275]
[1737679716198,0.73663383,103770.0,103760.0,0.00441275]
[1737679716791,0.73563383,103770.0,103760.0,0.00441275]
[1737679717203,0.73663383,103770.0,103760.0,0.00441275]
[1737679717411,0.73663383,103770.0,103760.0,0.00661912]
[1737679717608,0.73563383,103770.0,103760.0,0.00661912]
[1737679718016,0.78142564,103770.0,103760.0,0.00661912]
[1737679718213,0.73763383,103770.0,103760.0,0.00661912]
[1737679721397,0.7471107,103770.0,103760.0,0.00661912]
[1737679722786,0.7471107,103770.0,103760.0,0.00441275]
[1737679723327,0.7471107,103770.0,103760.0,0.00638328]
[1737679723506,0.7471107,103770.0,103760.0,0.00441275]
[1737679723667,0.7471107,103770.0,103760.0,0.00661912]
[1737679724075,0.7471107,103770.0,103760.0,0.00676132]
[1737679725699,0.7471107,103770.0,103760.0,0.00455495]
[1737679725897,0.7471107,103770.0,103760.0,0.00676132]
[1737679727695,0.49134354,103760.0,103750.0,3e-07]
[1737679727903,0.57869083,103760.0,103750.0,3e-07]
[1737679729451,0.58569083,103760.0,103750.0,0.0020003]
[1737679729655,0.58769083,103760.0,103750.0,0.0010003]
[1737679730101,0.59469083,103760.0,103750.0,0.0020003]
[1737679730309,0.58569083,103760.0,103750.0,3e-07]
[1737679730500,0.58569083,103760.0,103750.0,0.0010003]
[1737679730717,0.59469083,103760.0,103750.0,0.0020003]
[1737679730925,0.60169083,103760.0,103750.0,0.0020003]
[1737679731150,0.58569083,103760.0,103750.0,3e-07]
[1737679732928,0.60169083,103760.0,103750.0,0.0020003]
[1737679733146,0.59469083,103760.0,103750.0,0.0010003]
[1737679733350,0.59269083,103760.0,103750.0,0.0010003]
[1737679733553,0.49615706,103760.0,103750.0,3e-07]
[1737679733752,0.49615706,103760.0,103730.0,5e-07]
[1737679733753,0.239994,103740.0,103730.0,5e-07]
[1737679733952,0.270004,103730.0,103720.0,5e-07]
[1737679734207,0.56182942,103730.0,103720.0,9e-07]
[1737679735140,0.76182942,103730.0,103720.0,9e-07]
[1737679735629,0.67468506,103730.0,103720.0,9e-07]
[1737679736303,0.58035129,103730.0,103720.0,9e-07]
[1737679737082,0.37035129,103730.0,103720.0,9e-07]
[1737679738122,0.57035129,103730.0,103720.0,9e-07]
[1737679738362,0.58965244,103730.0,103720.0,9e-07]
[1737679739001,0.59932991,103730.0,103720.0,9e-07]
[1737679739252,0.096413,103720.0,103710.0,0.000103]
[1737679739479,0.19376029,103720.0,103710.0,0.000103]
[1737679740144,0.19376029,103720.0,103710.0,6.3e-05]
[1737679740832,0.41142783,103720.0,103710.0,6.3e-05]
[1737679742696,0.41142783,103720.0,103710.0,0.000563]
[1737679742697,0.30409406,103720.0,103710.0,0.000563]
[1737679744379,0.20674677,103720.0,103710.0,0.000563]
[1737679746169,0.099413,103720.0,103710.0,0.131363]
[1737679746374,0.20674677,103720.0,103710.0,0.1541422]
[1737679746613,0.20674677,103720.0,103710.0,0.000563]
[1737679746789,0.41142783,103720.0,103710.0,0.000563]
[1737679747023,0.30109406,103720.0,103710.0,0.000563]
[1737679747237,0.30109406,103720.0,103710.0,0.001563]
[1737679747623,0.20374677,103720.0,103710.0,0.001563]
[1737679748059,0.30109406,103720.0,103710.0,0.001563]
[1737679748262,0.40842783,103720.0,103710.0,0.001563]
[1737679748489,0.48872783,103720.0,103710.0,0.000563]
[1737679748699,0.48902666,103720.0,103710.0,0.001563]
[1737679749176,0.48902666,103720.0,103710.0,0.000563]
[1737679749473,0.59037395,103720.0,103710.0,0.000563]
[1737679749686,0.62337395,103720.0,103710.0,0.000563]
[1737679749886,0.50302666,103720.0,103710.0,0.000563]
[1737679750092,0.50202666,103720.0,103710.0,0.001563]
[1737679750729,0.51202666,103720.0,103710.0,0.001563]
[1737679751653,0.5217854,103720.0,103710.0,0.001563]
[1737679752277,0.096432,103700.0,103690.0,0.0009838]
[1737679752479,0.30111306,103700.0,103690.0,0.00148218]
[1737679752692,0.30111306,103700.0,103690.0,0.00049838]
[1737679753411,0.30111306,103700.0,103690.0,0.00149838]
[1737679758491,0.32005629,103700.0,103690.0,0.00149838]
[1737679760163,0.32009629,103700.0,103690.0,0.00164068]
[1737679760385,0.3296539,103700.0,103690.0,0.00164068]
[1737679762380,0.32009629,103700.0,103690.0,0.15685446]
[1737679762588,0.116472,103700.0,103690.0,0.17253991]
[1737679762791,0.116472,103700.0,103690.0,0.17353991]
[1737679763005,0.6862006,103710.0,103690.0,0.17353991]
[1737679763205,0.20376577,103700.0,103690.0,0.17353991]
[1737679763424,0.20676577,103700.0,103690.0,0.17253991]
[1737679763627,0.20676577,103700.0,103690.0,0.17353991]
[1737679764233,0.30411306,103700.0,103690.0,0.00164068]
[1737679764664,0.30111306,103700.0,103690.0,0.00164068]
[1737679767865,0.32027609,103700.0,103690.0,0.00164068]
[1737679768067,0.32027609,103700.0,103690.0,0.00064068]
[1737679768503,0.32327609,103700.0,103690.0,0.00064068]
[1737679768713,0.43060986,103700.0,103690.0,0.00064068]
[1737679768958,0.50850986,103700.0,103690.0,0.00064068]
[1737679769397,0.40117609,103700.0,103690.0,0.00064068]
[1737679769649,0.50850986,103700.0,103690.0,0.00064068]
[1737679769850,0.4110446,103700.0,103690.0,0.00064068]
[1737679770058,0.4216446,103700.0,103690.0,0.00064068]
[1737679772401,0.53897837,103700.0,103690.0,0.00064068]
[1737679772644,0.53897837,103700.0,103670.0,0.0795376]
[1737679772645,0.31111754,103680.0,103670.0,0.0795376]
[1737679772955,0.40846483,103680.0,103670.0,0.0795376]
[1737679773117,0.40846483,103680.0,103670.0,0.0785422]
[1737679774664,0.40846483,103680.0,103670.0,0.0805422]
[1737679774926,0.40846483,103680.0,103670.0,0.0051422]
[1737679775999,0.40846483,103680.0,103670.0,0.0031422]
[1737679776976,0.40846483,103680.0,103670.0,0.0001422]
[1737679777190,0.40846483,103680.0,103670.0,0.0031422]
[1737679777390,0.40846483,103680.0,103670.0,0.0021422]
[1737679777596,0.42808772,103680.0,103670.0,0.0021422]
[1737679777798,0.44156772,103680.0,103670.0,0.0001422]
[1737679779480,0.51846772,103680.0,103670.0,0.0001422]
[1737679780575,0.52827687,103680.0,103670.0,0.0001422]
[1737679784103,0.45137687,103680.0,103670.0,0.0001422]
[1737679787863,0.45133687,103680.0,103670.0,0.0001422]
[1737679788059,0.53083687,103680.0,103670.0,0.0001422]
[1737679797079,0.56383687,103680.0,103670.0,0.0001422]
[1737679797675,0.60983687,103680.0,103670.0,0.0001422]
[1737679799189,0.62683687,103680.0,103670.0,0.0001422]
[1737679799640,0.63583687,103680.0,103670.0,0.0011422]
[1737679799841,0.61983687,103680.0,103670.0,0.0011422]
[1737679800049,0.96713687,103680.0,103670.0,0.0011422]
[1737679800487,1.00486265,103680.0,103670.0,2e-07]
[1737679801105,1.15713687,103680.0,103670.0,2e-07]
[1737679801850,1.24973687,103680.0,103670.0,2e-07]
[1737679803724,1.35123687,103680.0,103670.0,2e-07]
[1737679804590,1.33123687,103680.0,103670.0,2e-07]
[1737679804806,0.554559,103670.0,103660.0,4e-07]
[1737679805025,0.184269,103660.0,103650.0,1e-08]
[1737679805241,0.096478,103650.0,103640.0,0.0011325]
[1737679805440,0.30115906,103650.0,103640.0,0.0011325]
[1737679805729,0.30115906,103650.0,103640.0,0.0001423]
[1737679806383,0.30115906,103650.0,103640.0,0.00029175]
[1737679806805,0.40849283,103650.0,103640.0,0.00029175]
[1737679807010,0.40849283,103650.0,103640.0,0.08189175]
[1737679807183,0.41049283,103650.0,103640.0,0.12909175]
[1737679807445,0.41049283,103650.0,103640.0,0.14201516]
[1737679808949,1.91049283,103650.0,103640.0,0.14201516]
[1737679809328,1.92975556,103650.0,103640.0,0.14201516]
[1737679809530,1.92975556,103650.0,103640.0,0.12909175]
[1737679811254,1.93947017,103650.0,103640.0,0.12909175]
[1737679811911,0.43947017,103650.0,103640.0,0.12909175]
[1737679812155,0.43947017,103650.0,103640.0,0.08189175]
[1737679813397,1.93947017,103650.0,103640.0,0.08189175]
[1737679817258,1.93947017,103650.0,103640.0,0.00029175]
[1737679817463,0.43947017,103650.0,103640.0,0.00029175]
[1737679817669,0.48507017,103650.0,103640.0,0.00029175]
[1737679821950,0.44991017,103650.0,103640.0,0.00029175]
[1737679822147,0.43947017,103650.0,103640.0,0.00029175]
[1737679822379,0.31314554,103650.0,103640.0,0.08269175]
[1737679822623,0.31314554,103650.0,103640.0,0.09595516]
[1737679827496,0.41049283,103650.0,103640.0,0.00029175]
[1737679829298,0.20581177,103650.0,103640.0,0.00029175]
[1737679829508,0.31314554,103650.0,103640.0,0.08099175]
[1737679831434,0.31344437,103650.0,103640.0,0.08099175]
[1737679832007,1.81344437,103650.0,103640.0,0.08099175]
[1737679832363,1.81344437,103650.0,103640.0,0.09408515]
[1737679834627,1.7061106,103650.0,103640.0,0.09408515]
[1737679834826,1.81344437,103650.0,103640.0,0.09408515]
[1737679835440,1.7061106,103650.0,103640.0,0.09408515]
[1737679836540,1.7061106,103650.0,103640.0,0.12420329]
[1737679836746,1.7061106,103650.0,103640.0,0.09408515]
[1737679836947,1.81344437,103650.0,103640.0,0.08099175]
[1737679837660,1.81344437,103650.0,103640.0,0.03041107]
[1737679838095,1.81344437,103650.0,103640.0,0.00029175]
[1737679838476,1.81344437,103650.0,103640.0,0.03041051]
[1737679840968,1.81344437,103650.0,103640.0,0.00029175]
[1737679841777,1.7061106,103650.0,103640.0,0.00029175]
[1737679843371,1.7061106,103650.0,103640.0,0.03041083]
[1737679843696,1.7061106,103650.0,103640.0,0.01655706]
[1737679843859,1.7061106,103650.0,103640.0,0.04667613]
[1737679844586,1.7061106,103650.0,103640.0,0.01655706]
[1737679846438,1.7061106,103650.0,103640.0,0.04667777]
[1737679846625,1.7061106,103650.0,103640.0,0.01655706]
[1737679847935,0.09877683,103650.0,103640.0,0.12857874]
[1737679848269,0.09877683,103650.0,103640.0,0.22506574]
[1737679848490,0.09877683,103650.0,103640.0,0.12857874]
[1737679848697,0.2061106,103650.0,103640.0,0.12857874]
[1737679848880,0.2041106,103650.0,103640.0,0.12857874]
[1737679849134,0.2041106,103650.0,103640.0,0.12957874]
[1737679849546,0.2241106,103650.0,103640.0,0.12957874]
[1737679849743,0.2041106,103650.0,103640.0,0.12957874]
[1737679850230,0.2241106,103650.0,103640.0,0.12957874]
[1737679850753,0.11677683,103650.0,103640.0,0.12957874]
[1737679850956,0.09677683,103650.0,103640.0,0.22606574]
[1737679852221,0.11677683,103650.0,103640.0,0.22606574]
[1737679852435,0.09677683,103650.0,103640.0,0.22606574]
[1737679852676,0.11677683,103650.0,103640.0,0.22606574]
[1737679852973,0.11677683,103650.0,103640.0,0.23592334]
[1737679853094,0.09677683,103650.0,103640.0,0.23592334]
[1737679853733,0.09677683,103650.0,103640.0,0.13943634]
[1737679854850,0.09677683,103650.0,103640.0,0.23592334]
[1737679855067,0.09677683,103650.0,103640.0,0.13943634]
[1737679856781,0.09677683,103650.0,103640.0,0.23592334]
[1737679857597,0.09677683,103650.0,103640.0,0.13943634]
[1737679858526,0.11677683,103650.0,103640.0,0.13943634]
[1737679858853,0.11677683,103650.0,103640.0,0.23592334]
[1737679859837,0.18716707,103650.0,103640.0,0.23592334]
[1737679860040,0.16716707,103650.0,103640.0,0.23592334]
[1737679860342,0.16716707,103650.0,103640.0,0.13943634]
[1737679861076,0.18716707,103650.0,103640.0,0.13943634]
[1737679861216,0.16716707,103650.0,103640.0,0.13943634]
[1737679862193,0.16716707,103650.0,103640.0,0.12957874]
[1737679863453,0.23755731,103650.0,103640.0,0.04767874]
[1737679863995,1.78625731,103650.0,103640.0,0.01755706]
[1737679864195,1.78625731,103650.0,103640.0,0.00129175]
[1737679864925,1.9630046,103650.0,103640.0,0.00129175]
[1737679865117,2.03339484,103650.0,103640.0,0.00129175]
[1737679865332,1.9630046,103650.0,103640.0,0.00129175]
[1737679865690,2.03688602,103650.0,103640.0,0.00129175]
[1737679865892,2.03688602,103650.0,103640.0,7.5e-07]
[1737679865893,2.10614303,103650.0,103640.0,7.5e-07]
[1737679866101,2.39718602,103650.0,103640.0,7.5e-07]
[1737679866913,0.175587,103640.0,103630.0,0.0001423]
[1737679867124,0.53319619,103640.0,103630.0,0.00023852]
[1737679868335,0.42586524,103640.0,103630.0,0.00023852]
[1737679868536,0.42786524,103640.0,103630.0,0.00023852]
[1737679868737,0.53519619,103640.0,103630.0,0.00023852]
[1737679870012,0.175197,103630.0,103620.0,0.001125]
[1737679870232,0.49764619,103630.0,103620.0,0.00122124]
[1737679870454,0.49764619,103630.0,103620.0,0.00023854]
[1737679871443,0.54384619,103630.0,103620.0,0.00023854]
[1737679873496,0.56344941,103630.0,103620.0,0.00023854]
[1737679880417,0.44567846,103630.0,103620.0,0.00023854]
[1737679881880,0.44557846,103630.0,103620.0,0.00023854]
[1737679882238,0.32067846,103630.0,103620.0,0.00123854]
[1737679882656,0.32067846,103630.0,103620.0,0.00023854]
[1737679883078,0.32067846,103630.0,103620.0,0.00123854]
[1737679887707,0.35424729,103630.0,103620.0,0.00123854]
[1737679888896,0.35424729,103630.0,103620.0,0.00023854]
[1737679889295,0.35424729,103630.0,103620.0,0.00123854]
[1737679889804,0.35454612,103630.0,103620.0,0.00023854]
[1737679890458,0.35654612,103630.0,103620.0,0.00023854]
[1737679894705,1.85654612,103630.0,103620.0,0.00023854]
[1737679896498,1.93494612,103630.0,103620.0,0.00023854]
[1737679905820,1.85654612,103630.0,103620.0,0.03037557]
[1737679906441,1.85654612,103630.0,103620.0,0.01097033]
[1737679907426,1.85654612,103630.0,103620.0,0.04111109]
[1737679915421,0.35654612,103630.0,103620.0,0.04111109]
[1737679917590,0.25919883,103630.0,103620.0,0.04111109]
[1737679917798,0.18874894,103630.0,103620.0,0.04111109]
[1737679917995,0.25919883,103630.0,103620.0,0.04111109]
[1737679919245,1.68874894,103630.0,103620.0,0.01097033]
[1737679919435,1.75919883,103630.0,103620.0,0.01097033]
[1737679922207,1.68874894,103630.0,103620.0,0.01097033]
[1737679922383,1.75919883,103630.0,103620.0,0.01097033]
[1737679922615,0.25919883,103630.0,103620.0,0.01097033]
[1737679922955,0.16914572,103630.0,103620.0,0.11651864]
[1737679923253,0.09879583,103630.0,103620.0,0.11651864]
[1737679923432,0.16924572,103630.0,103620.0,0.21302464]
[1737679923890,0.18924572,103630.0,103620.0,0.11651864]
[1737679924324,0.18724572,103630.0,103620.0,0.11651864]
[1737679924545,0.18724572,103630.0,103620.0,0.11751864]
[1737679924953,0.16724572,103630.0,103620.0,0.11751864]
[1737679925267,0.18724572,103630.0,103620.0,0.11751864]
[1737679927688,0.16724572,103630.0,103620.0,0.11751864]
[1737679927887,0.18724572,103630.0,103620.0,0.11751864]
[1737679928051,1.68724572,103630.0,103620.0,0.11751864]
[1737679931231,1.68724572,103630.0,103620.0,0.26751864]
[1737679931433,1.66724572,103630.0,103620.0,0.26751864]
[1737679931658,1.68724572,103630.0,103620.0,0.26751864]
[1737679932139,1.66724572,103630.0,103620.0,0.26751864]
[1737679932319,1.68724572,103630.0,103620.0,0.26751864]
[1737679932918,0.18724572,103630.0,103620.0,0.26751864]
[1737679936366,0.16724572,103630.0,103620.0,0.11751864]
[1737679936990,0.18724572,103630.0,103620.0,0.11751864]
[1737679939072,0.16724572,103630.0,103620.0,0.11751864]
[1737679939278,0.18724572,103630.0,103620.0,0.11751864]
[1737679940447,1.68724572,103630.0,103620.0,0.11751864]
[1737679940795,0.09679583,103630.0,103620.0,0.21402464]
[1737679941001,0.16724572,103630.0,103620.0,0.21402464]
[1737679941410,0.09679583,103630.0,103620.0,0.21402464]
[1737679942643,0.16724572,103630.0,103620.0,0.21402464]
[1737679942846,0.09679583,103630.0,103620.0,0.21402464]
[1737679943216,0.16724572,103630.0,103620.0,0.21402464]
[1737679943690,0.00029883,103630.0,103620.0,0.21402464]
[1737679945217,0.09679583,103630.0,103620.0,0.21402464]
[1737679946548,0.00029883,103630.0,103620.0,0.21402464]
[1737679947989,0.07074872,103630.0,103620.0,0.21402464]
[1737679948196,0.00029883,103630.0,103620.0,0.21402464]
[1737679948392,0.18694489,103640.0,103620.0,0.21486593]
[1737679948613,0.18694489,103640.0,103630.0,0.096497]
[1737679948812,0.18694489,103640.0,103630.0,0.16168309]
[1737679950110,0.09044989,103640.0,103630.0,0.35467509]
[1737679950371,0.02,103640.0,103630.0,0.35467509]
[1737679950571,0.02,103640.0,103630.0,0.43587509]
[1737679951030,0.09044989,103640.0,103630.0,0.43587509]
[1737679951617,0.18693689,103640.0,103630.0,0.53322238]
[1737679951830,0.25738678,103640.0,103630.0,0.14738609]
[1737679952050,0.36898678,103640.0,103630.0,0.03014831]
[1737679952279,0.53678396,103640.0,103630.0,0.001]
[1737679952501,0.53678396,103640.0,103630.0,0.002]
[1737679953110,0.53678396,103640.0,103630.0,0.001]
[1737679953316,1.675997,103630.0,103620.0,0.00023854]
[1737679953536,1.81689678,103630.0,103620.0,0.00023854]
[1737679955645,1.81689678,103630.0,103620.0,0.00123854]
[1737679955996,1.81689678,103630.0,103620.0,0.00223854]
[1737679956819,0.31689678,103630.0,103620.0,0.00223854]
[1737679959091,0.31689678,103630.0,103620.0,0.00023854]
[1737679959298,0.31689678,103630.0,103620.0,0.00123854]
[1737679959749,0.31689678,103630.0,103620.0,0.00023854]
[1737679959939,0.31689678,103630.0,103620.0,0.00123854]
[1737679961003,0.24644689,103630.0,103620.0,0.00123854]
[1737679961156,0.24644689,103630.0,103620.0,0.00223854]
[1737679963427,0.41424407,103630.0,103620.0,0.00223854]
[1737679963648,0.46094407,103630.0,103620.0,0.00223854]
[1737679964283,0.46094407,103630.0,103620.0,0.00123854]
[1737679965057,0.46294407,103630.0,103620.0,0.00123854]
[1737679965360,0.46294407,103630.0,103620.0,0.00023854]
[1737679966620,0.36559678,103630.0,103620.0,0.00023854]
[1737679967756,0.29514689,103630.0,103620.0,0.00023854]
[1737679968323,0.36559678,103630.0,103620.0,0.00023854]
[1737679971894,0.36589561,103630.0,103620.0,0.00023854]
[1737679973188,0.4632429,103630.0,103620.0,0.00023854]
[1737679978279,0.47278045,103630.0,103620.0,0.00023854]
[1737679982721,0.54323034,103630.0,103620.0,0.00023854]
[1737679983050,0.74323034,103630.0,103620.0,0.00023854]
[1737679983262,0.77623034,103630.0,103620.0,0.00023854]
[1737679983944,0.77423034,103630.0,103620.0,0.00023854]
[1737679984142,0.78623034,103630.0,103620.0,0.00023854]
[1737679984962,0.78623034,103630.0,103620.0,5.4e-07]
[1737679985385,0.90357763,103630.0,103620.0,5.4e-07]
[1737679985600,0.569006,103620.0,103610.0,1e-08]
[1737679985839,2.40775268,103620.0,103610.0,1e-08]
[1737679986054,0.87775268,103620.0,103610.0,1e-08]
[1737679986260,0.93134904,103620.0,103610.0,1e-08]
[1737679986478,1.97526467,103610.0,103600.0,1.1e-07]
[1737679986693,2.39991196,103610.0,103600.0,1.1e-07]
[1737679986864,0.89991196,103610.0,103600.0,1.1e-07]
[1737679987835,0.90349697,103610.0,103600.0,1.1e-07]
[1737679988044,0.91249697,103610.0,103600.0,1.1e-07]
[1737679988254,0.979407,103610.0,103600.0,1.1e-07]
[1737679989121,1.179407,103610.0,103600.0,1.1e-07]
[1737679989513,1.272087,103610.0,103600.0,1.1e-07]
[1737679989729,0.119534,103590.0,103580.0,0.0001423]
[1737679989956,0.033,103570.0,103560.0,0.0001423]
[1737679990207,0.47058197,103570.0,103550.0,0.00095779]
[1737679990408,0.30137663,103560.0,103550.0,0.00095779]
[1737679990613,0.40884397,103560.0,103550.0,0.00095779]
[1737679991016,0.096571,103550.0,103540.0,0.08667183]
[1737679991221,0.54925297,103550.0,103540.0,0.08667183]
[1737679991425,0.58582723,103550.0,103540.0,0.08667183]
[1737679991629,0.30143529,103550.0,103540.0,0.08667183]
[1737679993514,0.204088,103550.0,103540.0,0.08667183]
[1737679995483,0.204088,103550.0,103540.0,0.0002423]
[1737679999182,0.204088,103550.0,103540.0,0.00459802]
[1737679999973,0.36374834,103540.0,103530.0,0.0011386]
[1737680000183,0.36374834,103540.0,103520.0,0.00247456]
[1737680000184,0.33452468,103530.0,103520.0,0.00247456]
[1737680000429,0.20406634,103520.0,103510.0,0.0001423]
[1737680000637,0.30141363,103520.0,103510.0,0.0001423]
[1737680000846,0.33282796,103520.0,103510.0,0.0001423]
[1737680001898,0.33582796,103520.0,103510.0,0.0001423]
[1737680002051,0.53582796,103520.0,103510.0,0.0001423]
[1737680002434,0.6432953,103520.0,103510.0,0.0001423]
[1737680002641,0.53582796,103520.0,103510.0,0.0001423]
[1737680002865,0.54482796,103520.0,103510.0,0.0001423]
[1737680003026,0.6522953,103520.0,103510.0,0.0001423]
[1737680003229,0.8006953,103520.0,103510.0,3e-07]
[1737680003473,0.8006953,103520.0,103500.0,7.9e-07]
[1737680003474,0.22832333,103510.0,103500.0,7.9e-07]
[1737680003625,0.173927,103490.0,103480.0,1.4e-07]
[1737680003824,0.5176233,103490.0,103480.0,1.4e-07]
[1737680004239,0.41015596,103490.0,103480.0,1.4e-07]
[1737680004665,0.5176233,103490.0,103480.0,1.4e-07]
[1737680004852,0.5176233,103490.0,103480.0,0.00049286]
[1737680005354,0.41015596,103490.0,103480.0,0.00049286]
[1737680006202,0.41815596,103490.0,103480.0,0.00049286]
[1737680006385,0.41015596,103490.0,103480.0,0.00049286]
[1737680006812,0.31044163,103490.0,103480.0,0.00049286]
[1737680006966,0.27713581,103490.0,103480.0,0.00049286]
[1737680007175,0.37576281,103490.0,103480.0,0.00049286]
[1737680007757,0.37576281,103490.0,103480.0,0.00063526]
[1737680008379,0.37376281,103490.0,103480.0,0.00063526]
[1737680008762,0.37676281,103490.0,103480.0,0.00063526]
[1737680008964,0.39655148,103490.0,103480.0,0.00063526]
[1737680009203,0.38755148,103490.0,103480.0,0.00063526]
[1737680009607,0.39555148,103490.0,103480.0,0.00063526]
[1737680009833,0.38755148,103490.0,103480.0,0.00063526]
[1737680010048,0.38655148,103490.0,103480.0,0.00063526]
[1737680012714,0.30920419,103490.0,103480.0,0.00063526]
[1737680012919,0.25778986,103490.0,103480.0,0.00063526]
[1737680013098,0.22588301,103490.0,103480.0,0.00063526]
[1737680013618,0.25729734,103490.0,103480.0,0.00063526]
[1737680013859,0.16067034,103490.0,103480.0,0.09727226]
[1737680014296,0.15867034,103490.0,103480.0,0.09727226]
[1737680014491,0.01978867,103490.0,103480.0,0.09727226]
[1737680014705,0.11641567,103490.0,103480.0,0.09727226]
[1737680015265,0.31272,103510.0,103490.0,0.193255]
[1737680015495,0.31272,103510.0,103490.0,0.55874101]
[1737680015712,0.602552,103510.0,103490.0,0.65536101]
[1737680015923,0.509832,103510.0,103500.0,0.095618]
[1737680016234,0.309832,103510.0,103500.0,0.095618]
[1737680016428,0.41729934,103510.0,103500.0,0.12544183]
[1737680016625,0.41829934,103510.0,103500.0,0.02982383]
[1737680016862,0.116612,103510.0,103500.0,0.096618]
[1737680017068,2.18709034,103520.0,103500.0,0.12644183]
[1737680017294,1.99387834,103520.0,103500.0,0.096618]
[1737680017515,2.09048434,103520.0,103500.0,0.289853]
[1737680017728,2.18708934,103520.0,103500.0,0.31970272]
[1737680017941,0.096609,103510.0,103500.0,0.31970272]
[1737680018141,1.89727134,103520.0,103500.0,0.289853]
[1737680018863,0.39727134,103520.0,103500.0,0.483088]
[1737680019378,0.39727134,103520.0,103500.0,0.289853]
[1737680019538,1.50029925,103510.0,103500.0,0.31974896]
[1737680019968,0.00029925,103510.0,103500.0,0.39624896]
[1737680020401,0.00029925,103510.0,103500.0,0.39724896]
[1737680024686,1.50029925,103510.0,103500.0,0.39724896]
[1737680025010,0.00029925,103510.0,103500.0,0.39724896]
[1737680027080,1.89726734,103520.0,103500.0,0.59047596]
[1737680027488,1.89726734,103520.0,103510.0,0.096609]
[1737680027867,1.89726734,103520.0,103510.0,0.12650496]
[1737680028074,1.70406734,103520.0,103510.0,0.12650496]
[1737680028685,1.60746734,103520.0,103510.0,0.12650496]
[1737680028888,0.30141363,103520.0,103510.0,0.02989596]
[1737680029021,0.30141363,103520.0,103510.0,0.06186936]
[1737680029232,0.30341363,103520.0,103510.0,0.06186936]
[1737680030310,0.20606634,103520.0,103510.0,0.15847836]
[1737680030482,0.20606634,103520.0,103510.0,0.06186936]
[1737680031305,0.20636538,103520.0,103510.0,0.06186936]
[1737680031509,0.20436538,103520.0,103510.0,0.06186936]
[1737680032854,0.20436538,103520.0,103510.0,0.02989596]
[1737680033064,0.20436538,103520.0,103510.0,0.03089596]
[1737680034643,1.7328016,103520.0,103510.0,0.03089596]
[1737680035060,1.83014889,103520.0,103510.0,0.03089596]
[1737680035480,1.72268155,103520.0,103510.0,0.03089596]
[1737680035686,1.69424533,103520.0,103510.0,0.03089596]
[1737680036043,0.26954533,103520.0,103510.0,0.001]
[1737680036499,0.28869253,103520.0,103510.0,0.001]
[1737680036880,0.096609,103510.0,103500.0,0.0001424]
[1737680037079,0.19395629,103510.0,103500.0,0.0001424]
[1737680038689,0.30342363,103510.0,103500.0,0.0001424]
[1737680038894,0.002,103510.0,103500.0,0.0967604]
[1737680039104,0.20607634,103510.0,103500.0,0.03015163]
[1737680039314,0.20607634,103510.0,103500.0,0.0001424]
[1737680039522,0.20607634,103510.0,103500.0,0.0967604]
[1737680039699,0.098609,103510.0,103500.0,0.0001424]
[1737680039934,0.098609,103510.0,103500.0,0.0967604]
[1737680040337,0.098609,103510.0,103500.0,0.12777882]
[1737680040547,0.20607634,103510.0,103500.0,0.03116082]
[1737680040749,0.20607634,103510.0,103500.0,0.03016082]
[1737680041139,0.20607634,103510.0,103500.0,0.03116082]
[1737680041338,0.20407634,103510.0,103500.0,0.12777882]
[1737680041563,0.20507634,103510.0,103500.0,0.03116082]
[1737680042044,0.20507634,103510.0,103500.0,0.12777882]
[1737680042343,0.098609,103510.0,103500.0,0.12777882]
[1737680042568,0.098609,103510.0,103500.0,0.0977604]
[1737680042914,0.096609,103510.0,103500.0,0.0967604]
[1737680043118,0.096609,103510.0,103500.0,0.0977604]
[1737680044407,0.30142363,103510.0,103500.0,0.0011424]
[1737680044846,1.80142363,103510.0,103500.0,0.0011424]
[1737680045269,0.09690804,103510.0,103500.0,0.0977604]
[1737680045679,0.09690804,103510.0,103500.0,0.0011424]
[1737680047015,0.20437538,103510.0,103500.0,0.0011424]
[1737680047711,0.38062267,103510.0,103500.0,0.0011424]
[1737680048094,0.38037352,103510.0,103500.0,0.0011424]
[1737680049125,0.38037352,103510.0,103500.0,0.0001424]
[1737680049926,0.38037352,103510.0,103500.0,0.0011424]
[1737680051398,0.42557352,103510.0,103500.0,0.0011424]
[1737680052352,0.42557352,103510.0,103500.0,0.0001424]
[1737680053561,0.42757352,103510.0,103500.0,0.0001424]
[1737680054557,1.9464709,103510.0,103500.0,0.0001424]
[1737680058286,1.8675709,103510.0,103500.0,0.0001424]
[1737680058546,0.00229904,103510.0,103500.0,0.0967604]
[1737680058773,0.00229904,103510.0,103500.0,0.20496034]
[1737680058979,0.09890804,103510.0,103500.0,0.20496034]
[1737680059384,0.00229904,103510.0,103500.0,0.23506868]
[1737680059515,0.00229904,103510.0,103500.0,0.38506868]
[1737680060359,0.00229904,103510.0,103500.0,0.30586868]
[1737680060593,0.00229904,103510.0,103500.0,0.30686868]
[1737680060931,0.00229904,103510.0,103500.0,0.30586868]
[1737680061448,0.00229904,103510.0,103500.0,0.30686868]
[1737680062068,0.00029904,103510.0,103500.0,0.30686868]
[1737680062766,0.00129904,103510.0,103500.0,0.30686868]
[1737680063881,0.09790804,103510.0,103500.0,0.30686868]
[1737680064108,0.20537538,103510.0,103500.0,0.30686868]
[1737680068784,0.00129904,103510.0,103500.0,0.30686868]
[1737680069626,0.09790804,103510.0,103500.0,0.30686868]
[1737680072194,0.00129904,103510.0,103500.0,0.48191597]
[1737680078115,0.00129904,103510.0,103500.0,0.33191597]